fUST/lending_fUST_20250521
["ID","MTS","AMOUNT","RATE_DAILY","PERIOD"]
[361759206,1747765835538,-430.0,0.00016438,2]
[361759207,1747765835548,-430.0,0.00016438,2]
[361759208,1747765835558,-350.0,0.00016438,2]
[361759209,1747765835567,-400.0,0.00016438,2]
[361759210,1747765835578,-430.0,0.00016438,2]
[361759211,1747765835587,-430.0,0.00016438,2]
[361759212,1747765835597,-430.0,0.00016438,2]
[361759213,1747765835606,-430.0,0.00016438,2]
[361759214,1747765835616,-430.0,0.00016438,2]
[361759215,1747765835626,-430.0,0.00016438,2]
[361759216,1747765835636,-430.0,0.00016438,2]
[361759217,1747765835646,-430.0,0.00016438,2]
[361759218,1747765835656,-370.0,0.00016438,2]
[361759219,1747765835666,-430.0,0.00016438,2]
[361759220,1747765835676,-349.6174774,0.00016438,2]
[361759221,1747765835686,-382.14099704,0.00016438,2]
[361759222,1747765835695,-430.0,0.00016438,2]
[361759223,1747765835705,-430.0,0.00016438,2]
[361759224,1747765835715,-430.0,0.00016438,2]
[361759225,1747765835724,-430.0,0.00016438,2]
[361759226,1747765835734,-430.0,0.00016438,2]
[361759227,1747765835744,-378.99525934,0.00016438,2]
[361759228,1747765835753,-450.0,0.00016438,2]
[361759229,1747765835763,-500.0,0.00016438,2]
[361759230,1747765835772,-336.39791126,0.00016438,2]
[361759231,1747765835781,-430.0,0.00016438,2]
[361759232,1747765835791,-281.6223811,0.00016438,2]
[361759233,1747765835800,-430.0,0.00016438,2]
[361759234,1747765835810,-430.0,0.00016438,2]
[361759235,1747765835820,-500.0,0.00016438,2]
[361759236,1747765835829,-500.0,0.00016438,2]
[361759237,1747765835839,-204.44069266,0.00016438,2]
[361759238,1747765835848,-430.0,0.00016438,2]
[361759239,1747765835857,-430.0,0.00016438,2]
[361759240,1747765835867,-441.96,0.00016438,2]
[361759241,1747765835877,-470.0,0.00016438,2]
[361759242,1747765835886,-468.08,0.00016438,2]
[361759243,1747765835895,-430.0,0.00016438,2]
[361759244,1747765835905,-342.87887713,0.00016438,2]
[361759245,1747765835916,-430.0,0.00016438,2]
[361759246,1747765835926,-400.0,0.00016438,2]
[361759247,1747765835935,-322.45643657,0.00016438,2]
[361759248,1747765835947,-430.0,0.00016438,2]
[361759249,1747765835957,-400.0,0.00016438,2]
[361759250,1747765835967,-430.0,0.00016438,2]
[361759251,1747765835981,-430.0,0.00016438,2]
[361759252,1747765835991,-430.0,0.00016438,2]
[361759253,1747765836002,-430.19159187,0.00016438,2]
[361759254,1747765836011,-430.0,0.00016438,2]
[361759255,1747765836020,-420.0,0.00016438,2]
[361759256,1747765836030,-430.0,0.00016438,2]
[361759257,1747765836039,-430.0,0.00016438,2]
[361759258,1747765836050,-430.0,0.00016438,2]
[361759259,1747765836059,-430.0,0.00016438,2]
[361759260,1747765836068,-430.0,0.00016438,2]
[361759261,1747765836078,-430.0,0.00016438,2]
[361759262,1747765836087,-430.0,0.00016438,2]
[361759263,1747765836096,-430.0,0.00016438,2]
[361759264,1747765836105,-494.51258934,0.00016438,2]
[361759265,1747765836115,-430.0,0.00016438,2]
[361759266,1747765836124,-430.0,0.00016438,2]
[361759267,1747765836134,-430.0,0.00016438,2]
[361759268,1747765836144,-430.0,0.00016438,2]
[361759269,1747765836153,-430.0,0.00016438,2]
[361759270,1747765836162,-430.0,0.00016438,2]
[361759271,1747765836171,-430.0,0.00016438,2]
[361759272,1747765836180,-430.0,0.00016438,2]
[361759273,1747765836189,-430.0,0.00016438,2]
[361759274,1747765836199,-430.0,0.00016438,2]
[361759275,1747765836326,-430.0,0.00016438,2]
[361759276,1747765836352,-430.0,0.00016438,2]
[361759277,1747765836361,-430.0,0.00016438,2]
[361759278,1747765836370,-452.97398716,0.00016438,2]
[361759279,1747765836380,-430.0,0.00016438,2]
[361759280,1747765836389,-430.0,0.00016438,2]
[361759281,1747765836398,-430.0,0.00016438,2]
[361759282,1747765836408,-430.0,0.00016438,2]
[361759283,1747765836417,-374.87553884,0.00016438,2]
[361759284,1747765836426,-430.0,0.00016438,2]
[361759285,1747765836435,-430.0,0.00016438,2]
[361759286,1747765836444,-430.0,0.00016438,2]
[361759287,1747765836454,-430.0,0.00016438,2]
[361759288,1747765836463,-430.0,0.00016438,2]
[361759289,1747765836473,-430.0,0.00016438,2]
[361759290,1747765836482,-430.0,0.00016438,2]
[361759291,1747765836491,-488.94354818,0.00016438,2]
[361759292,1747765836501,-430.0,0.00016438,2]
[361759293,1747765836511,-430.0,0.00016438,2]
[361759294,1747765836522,-430.0,0.00016438,2]
[361759295,1747765836531,-430.0,0.00016438,2]
[361759296,1747765836540,-473.08194016,0.00016438,2]
[361759297,1747765836550,-430.0,0.00016438,2]
[361759298,1747765836559,-428.20381235,0.00016438,2]
[361759299,1747765836569,-430.0,0.00016438,2]
[361759300,1747765836578,-430.0,0.00016438,2]
[361759301,1747765836588,-430.0,0.00016438,2]
[361759302,1747765836598,-510.7,0.00016438,2]
[361759303,1747765836610,-430.0,0.00016438,2]
[361759304,1747765836620,-430.0,0.00016438,2]
[361759305,1747765836631,-430.0,0.00016438,2]
[361759306,1747765836640,-430.0,0.00016438,2]
[361759307,1747765836649,-430.0,0.00016438,2]
[361759308,1747765836659,-430.0,0.00016438,2]
[361759309,1747765836668,-510.66976313,0.00016438,2]
[361759310,1747765836678,-430.0,0.00016438,2]
[361759311,1747765836688,-430.0,0.00016438,2]
[361759312,1747765836698,-430.0,0.00016438,2]
[361759313,1747765836707,-430.0,0.00016438,2]
[361759314,1747765836717,-430.0,0.00016438,2]
[361759315,1747765836727,-495.13762339,0.00016438,2]
[361759316,1747765836737,-390.0,0.00016438,2]
[361759317,1747765836746,-430.0,0.00016438,2]
[361759318,1747765836756,-357.61351071,0.00016438,2]
[361759319,1747765836765,-430.0,0.00016438,2]
[361759320,1747765836775,-430.0,0.00016438,2]
[361759321,1747765836784,-430.0,0.00016438,2]
[361759322,1747765836793,-401.81743629,0.00016438,2]
[361759323,1747765836803,-430.0,0.00016438,2]
[361759324,1747765836813,-430.0,0.00016438,2]
[361759325,1747765836822,-430.0,0.00016438,2]
[361759326,1747765836831,-430.0,0.00016438,2]
[361759327,1747765836842,-353.6529573,0.00016438,2]
[361759328,1747765836856,-353.88917433,0.00016438,2]
[361759329,1747765836865,-357.7256588,0.00016438,2]
[361759330,1747765836874,-430.0,0.00016438,2]
[361759331,1747765836884,-430.0,0.00016438,2]
[361759332,1747765836894,-160.62,0.00016438,2]
[361759333,1747765836903,-430.0,0.00016438,2]
[361759334,1747765836912,-156.055127,0.00016438,2]
[361759335,1747765836922,-563.63674268,0.00016438,2]
[361759336,1747765836931,-430.0,0.00016438,2]
[361759337,1747765836940,-430.0,0.00016438,2]
[361759338,1747765836949,-358.0,0.00016438,2]
[361759339,1747765836958,-451.43,0.00016438,2]
[361759340,1747765836968,-361.6,0.00016438,2]
[361759341,1747765836983,-430.0,0.00016438,2]
[361759342,1747765836993,-380.88518851,0.00016438,2]
[361759343,1747765837003,-322.81304656,0.00016438,2]
[361759344,1747765837012,-430.0,0.00016438,2]
[361759345,1747765837022,-430.0,0.00016438,2]
[361759346,1747765837032,-430.0,0.00016438,2]
[361759347,1747765837042,-430.0,0.00016438,2]
[361759348,1747765837052,-439.55,0.00016438,2]
[361759349,1747765837062,-430.0,0.00016438,2]
[361759350,1747765837072,-324.03889574,0.00016438,2]
[361759351,1747765837082,-430.0,0.00016438,2]
[361759352,1747765837091,-430.0,0.00016438,2]
[361759353,1747765837101,-430.0,0.00016438,2]
[361759354,1747765837110,-501.83,0.00016438,2]
[361759355,1747765837120,-463.82826181,0.00016438,2]
[361759356,1747765837130,-328.54376891,0.00016438,2]
[361759357,1747765837140,-430.0,0.00016438,2]
[361759358,1747765837150,-430.0,0.00016438,2]
[361759359,1747765837159,-430.0,0.00016438,2]
[361759360,1747765837169,-430.0,0.00016438,2]
[361759361,1747765837179,-430.0,0.00016438,2]
[361759362,1747765837188,-430.0,0.00016438,2]
[361759363,1747765837198,-430.0,0.00016438,2]
[361759364,1747765837207,-357.56847809,0.00016438,2]
[361759365,1747765837217,-456.76671382,0.00016438,2]
[361759366,1747765837226,-430.0,0.00016438,2]
[361759367,1747765837239,-430.0,0.00016438,2]
[361759368,1747765837249,-430.0,0.00016438,2]
[361759369,1747765837259,-521.89612473,0.00016438,2]
[361759370,1747765837268,-430.0,0.00016438,2]
[361759371,1747765837278,-430.0,0.00016438,2]
[361759372,1747765837287,-340.0,0.00016438,2]
[361759373,1747765837296,-430.0,0.00016438,2]
[361759374,1747765837306,-430.0,0.00016438,2]
[361759375,1747765837315,-430.0,0.00016438,2]
[361759376,1747765837325,-430.0,0.00016438,2]
[361759377,1747765837334,-430.0,0.00016438,2]
[361759378,1747765837344,-430.0,0.00016438,2]
[361759379,1747765837353,-551.59,0.00016438,2]
[361759380,1747765837363,-430.0,0.00016438,2]
[361759381,1747765837372,-303.75499854,0.00016438,2]
[361759382,1747765837382,-530.62,0.00016438,2]
[361759385,1747765837391,-430.0,0.00016438,2]
[361759388,1747765837400,-415.30314122,0.00016438,2]
[361759390,1747765837410,-430.0,0.00016438,2]
[361759392,1747765837419,-400.53730689,0.00016438,2]
[361759394,1747765837428,-430.0,0.00016438,2]
[361759395,1747765837438,-430.0,0.00016438,2]
[361759396,1747765837447,-430.0,0.00016438,2]
[361759397,1747765837457,-430.0,0.00016438,2]
[361759398,1747765837466,-858.02,0.00016438,2]
[361759400,1747765837475,-430.0,0.00016438,2]
[361759401,1747765837484,-430.0,0.00016438,2]
[361759402,1747765837493,-430.0,0.00016438,2]
[361759403,1747765837503,-175.43486957,0.00016438,2]
[361759404,1747765837513,-430.0,0.00016438,2]
[361759405,1747765837522,-430.0,0.00016438,2]
[361759406,1747765837532,-516.86,0.00016438,2]
[361759407,1747765837541,-430.0,0.00016438,2]
[361759408,1747765837550,-430.0,0.00016438,2]
[361759409,1747765837560,-430.0,0.00016438,2]
[361759410,1747765837569,-430.0,0.00016438,2]
[361759411,1747765837579,-457.03698808,0.00016438,2]
[361759412,1747765837588,-430.0,0.00016438,2]
[361759413,1747765837598,-430.0,0.00016438,2]
[361759414,1747765837607,-370.0,0.00016438,2]
[361759415,1747765837617,-430.0,0.00016438,2]
[361759416,1747765837627,-430.0,0.00016438,2]
[361759417,1747765837636,-430.0,0.00016438,2]
[361759418,1747765837645,-430.0,0.00016438,2]
[361759419,1747765837654,-430.0,0.00016438,2]
[361759420,1747765837664,-430.0,0.00016438,2]
[361759421,1747765837674,-461.41,0.00016438,2]
[361759422,1747765837684,-430.0,0.00016438,2]
[361759423,1747765837695,-310.0,0.00016438,2]
[361759424,1747765837705,-430.0,0.00016438,2]
[361759425,1747765837717,-430.0,0.00016438,2]
[361759426,1747765837732,-430.0,0.00016438,2]
[361759427,1747765837742,-420.68463914,0.00016438,2]
[361759428,1747765837752,-430.0,0.00016438,2]
[361759429,1747765837762,-400.0,0.00016438,2]
[361759430,1747765837773,-430.0,0.00016438,2]
[361759431,1747765837783,-390.0,0.00016438,2]
[361759432,1747765837793,-430.0,0.00016438,2]
[361759433,1747765837804,-172.85854791,0.00016438,2]
[361759434,1747765837816,-430.0,0.00016438,2]
[361759435,1747765837826,-430.0,0.00016438,2]
[361759436,1747765837836,-430.0,0.00016438,2]
[361759437,1747765837846,-421.94470965,0.00016438,2]
[361759438,1747765837857,-375.2185052,0.00016438,2]
[361759439,1747765837867,-430.0,0.00016438,2]
[361759441,1747765837877,-470.0,0.00016438,2]
[361759443,1747765837886,-430.0,0.00016438,2]
[361759444,1747765837896,-430.0,0.00016438,2]
[361759445,1747765837906,-430.0,0.00016438,2]
[361759446,1747765837915,-840.83,0.00016438,2]
[361759447,1747765837925,-316.23431929,0.00016438,2]
[361759448,1747765837934,-430.0,0.00016438,2]
[361759449,1747765837943,-430.0,0.00016438,2]
[361759450,1747765837952,-430.0,0.00016438,2]
[361759451,1747765837962,-430.0,0.00016438,2]
[361759452,1747765837974,-439.29799493,0.00016438,2]
[361759453,1747765837984,-430.0,0.00016438,2]
[361759454,1747765837994,-400.0,0.00016438,2]
[361759455,1747765838003,-430.0,0.00016438,2]
[361759456,1747765838013,-400.0,0.00016438,2]
[361759457,1747765838024,-430.0,0.00016438,2]
[361759458,1747765838033,-430.0,0.00016438,2]
[361759459,1747765838043,-430.0,0.00016438,2]
[361759460,1747765838053,-537.77,0.00016438,2]
[361759461,1747765838062,-430.0,0.00016438,2]
[361759462,1747765838072,-430.0,0.00016438,2]
[361759463,1747765838081,-430.0,0.00016438,2]
[361759465,1747765838091,-478.87,0.00016438,2]
[361759467,1747765838101,-430.0,0.00016438,2]
[361759469,1747765838110,-430.0,0.00016438,2]
[361759471,1747765838119,-430.0,0.00016438,2]
[361759472,1747765838128,-430.0,0.00016438,2]
[361759474,1747765838138,-430.0,0.00016438,2]
[361759476,1747765838148,-430.0,0.00016438,2]
[361759478,1747765838159,-430.0,0.00016438,2]
[361759479,1747765838168,-430.0,0.00016438,2]
[361759480,1747765838178,-430.0,0.00016438,2]
[361759481,1747765838188,-430.0,0.00016438,2]
[361759482,1747765838197,-430.0,0.00016438,2]
[361759483,1747765838207,-430.0,0.00016438,2]
[361759484,1747765838216,-430.0,0.00016438,2]
[361759485,1747765838225,-430.0,0.00016438,2]
[361759486,1747765838235,-430.0,0.00016438,2]
[361759487,1747765838244,-430.0,0.00016438,2]
[361759488,1747765838256,-430.0,0.00016438,2]
[361759489,1747765838265,-355.75,0.00016438,2]
[361759490,1747765838275,-179.30412007,0.00016438,2]
[361759491,1747765838285,-430.0,0.00016438,2]
[361759492,1747765838295,-430.0,0.00016438,2]
[361759493,1747765838305,-390.0,0.00016438,2]
[361759494,1747765838315,-430.0,0.00016438,2]
[361759495,1747765838324,-430.0,0.00016438,2]
[361759496,1747765838335,-430.0,0.00016438,2]
[361759497,1747765838345,-430.0,0.00016438,2]
[361759498,1747765838356,-542.53,0.00016438,2]
[361759499,1747765838366,-430.0,0.00016438,2]
[361759500,1747765838377,-430.0,0.00016438,2]
[361759501,1747765838387,-430.0,0.00016438,2]
[361759502,1747765838396,-561.73,0.00016438,2]
[361759503,1747765838406,-430.0,0.00016438,2]
[361759504,1747765838416,-430.0,0.00016438,2]
[361759505,1747765838427,-464.09791801,0.00016438,2]
[361759506,1747765838436,-430.0,0.00016438,2]
[361759507,1747765838446,-430.0,0.00016438,2]
[361759508,1747765838455,-430.0,0.00016438,2]
[361759509,1747765838465,-430.0,0.00016438,2]
[361759510,1747765838474,-430.0,0.00016438,2]
[361759511,1747765838484,-430.0,0.00016438,2]
[361759512,1747765838494,-258.67379641,0.00016438,2]
[361759513,1747765838503,-430.0,0.00016438,2]
[361759514,1747765838513,-430.0,0.00016438,2]
[361759515,1747765838522,-430.0,0.00016438,2]
[361759516,1747765838532,-430.0,0.00016438,2]
[361759517,1747765838542,-430.0,0.00016438,2]
[361759518,1747765838551,-430.0,0.00016438,2]
[361759519,1747765838561,-269.09576811,0.00016438,2]
[361759520,1747765838570,-430.0,0.00016438,2]
[361759521,1747765838580,-157.21894377,0.00016438,2]
[361759522,1747765838590,-430.0,0.00016438,2]
[361759523,1747765838599,-170.73046822,0.00016438,2]
[361759524,1747765838609,-430.0,0.00016438,2]
[361759525,1747765838618,-430.0,0.00016438,2]
[361759526,1747765838629,-430.0,0.00016438,2]
[361759527,1747765838639,-430.0,0.00016438,2]
[361759528,1747765838649,-470.0,0.00016438,2]
[361759529,1747765838659,-500.0,0.00016473,2]
[361759530,1747765838669,-500.0,0.00016473,2]
[361759531,1747765838679,-271.04,0.00016712,2]
[361759532,1747765838688,-400.0,0.00016712,2]
[361759533,1747765838698,-433.77,0.00016712,2]
[361759534,1747765838708,-390.0,0.00016712,2]
[361759535,1747765838718,-346.59,0.00016712,2]
[361759536,1747765838727,-405.39,0.00016712,2]
[361759537,1747765838738,-241.94,0.00016712,2]
[361759538,1747765838748,-315.65,0.00016712,2]
[361759539,1747765838757,-271.29,0.00016712,2]
[361759540,1747765838767,-376.41,0.00016712,2]
[361759541,1747765838778,-434.52,0.00016712,2]
[361759542,1747765838787,-256.82,0.00016712,2]
[361759543,1747765838797,-430.0,0.00016712,2]
[361759544,1747765838807,-306.8,0.00016712,2]
[361759545,1747765838817,-400.0,0.00016712,2]
[361759546,1747765838827,-430.0,0.00016712,2]
[361759547,1747765838836,-430.0,0.00016712,2]
[361759548,1747765838846,-151.31,0.00016712,2]
[361759549,1747765838855,-465.58329343,0.00016712,2]
[361759550,1747765838865,-199.1,0.00016712,2]
[361759551,1747765838875,-422.15,0.00016712,2]
[361759552,1747765838885,-251.39,0.00016712,2]
[361759553,1747765838894,-445.09,0.00016712,2]
[361759554,1747765838906,-430.0,0.00016712,2]
[361759555,1747765838916,-543.12600606,0.00016712,2]
[361759556,1747765838925,-430.0,0.00016712,2]
[361759557,1747765838934,-430.0,0.00016712,2]
[361759558,1747765838944,-430.0,0.00016712,2]
[361759559,1747765838955,-387.13,0.00016712,2]
[361759560,1747765838966,-175.64,0.00016712,2]
[361759561,1747765838978,-238.87,0.00016712,2]
[361759562,1747765838988,-423.48,0.00016712,2]
[361759563,1747765838997,-430.0,0.00016712,2]
[361759564,1747765839007,-430.0,0.00016712,2]
[361759565,1747765839019,-430.0,0.00016712,2]
[361759566,1747765839029,-858.02,0.00016712,2]
[361759567,1747765839039,-430.0,0.00016712,2]
[361759568,1747765839048,-430.0,0.00016712,2]
[361759569,1747765839059,-579.6,0.00016712,2]
[361759570,1747765839068,-430.0,0.00016712,2]
[361759571,1747765839078,-265.3,0.00016712,2]
[361759572,1747765839087,-430.0,0.00016712,2]
[361759573,1747765839097,-430.0,0.00016712,2]
[361759574,1747765839107,-510.65,0.00016712,2]
[361759575,1747765839116,-430.0,0.00016712,2]
[361759576,1747765839127,-496.76,0.00016712,2]
[361759577,1747765839137,-430.0,0.00016712,2]
[361759578,1747765839148,-840.83,0.00016712,2]
[361759579,1747765839157,-430.0,0.00016712,2]
[361759580,1747765839168,-430.0,0.00016712,2]
[361759581,1747765839178,-430.0,0.00016712,2]
[361759582,1747765839187,-430.0,0.00016712,2]
[361759583,1747765839197,-400.0,0.00016712,2]
[361759584,1747765839207,-441.75488087,0.00016712,2]
[361759585,1747765839217,-430.0,0.00016712,2]
[361759586,1747765839227,-430.0,0.00016712,2]
[361759587,1747765839236,-430.0,0.00016712,2]
[361759588,1747765839247,-430.0,0.00016712,2]
[361759589,1747765839257,-430.0,0.00016712,2]
[361759590,1747765839267,-476.22,0.00016712,2]
[361759591,1747765839276,-430.0,0.00016712,2]
[361759592,1747765839287,-430.0,0.00016712,2]
[361759593,1747765839296,-430.0,0.00016712,2]
[361759594,1747765839306,-566.23,0.00016712,2]
[361759595,1747765839316,-430.0,0.00016712,2]
[361759596,1747765839327,-238.98,0.00016712,2]
[361759597,1747765839338,-430.0,0.00016712,2]
[361759598,1747765839347,-430.0,0.00016712,2]
[361759599,1747765839357,-430.0,0.00016712,2]
[361759605,1747765839484,-430.0,0.00016712,2]
[361759606,1747765839512,-305.09,0.00016712,2]
[361759607,1747765839521,-430.0,0.00016712,2]
[361759608,1747765839530,-322.45,0.00016712,2]
[361759609,1747765839541,-430.0,0.00016712,2]
[361759610,1747765839550,-500.0,0.00016745,2]
[361759611,1747765839560,-500.0,0.00016745,2]
[361759612,1747765839570,-500.0,0.00016745,2]
[361759613,1747765839580,-500.0,0.00016745,2]
[361759615,1747765839589,-500.0,0.00016766,2]
[361759616,1747765839599,-500.0,0.00016767,2]
[361759618,1747765839608,-502.21953001,0.00016767,2]
[361759619,1747765839618,-500.0,0.00016773,2]
[361759620,1747765839627,-500.0,0.00016837,2]
[361759621,1747765839637,-500.0,0.00016837,2]
[361759623,1747765839648,-500.0,0.00016837,2]
[361759624,1747765839658,-500.0,0.00016856,2]
[361759625,1747765839667,-500.0,0.00016965,2]
[361759626,1747765839677,-502.24691672,0.00016965,2]
[361759627,1747765839687,-186.91212306,0.00016974,2]
[361759628,1747765839697,-272.44,0.00016986,2]
[361759630,1747765839707,-263.5,0.00016986,2]
[361759632,1747765839717,-244.97,0.00016986,2]
[361759633,1747765839727,-430.0,0.00016986,2]
[361759634,1747765839736,-430.0,0.00016986,2]
[361759635,1747765839746,-430.0,0.00016986,2]
[361759636,1747765839755,-515.68,0.00016986,2]
[361759637,1747765839767,-430.0,0.00016986,2]
[361759638,1747765839776,-430.0,0.00016986,2]
[361759639,1747765839787,-858.02,0.00016986,2]
[361759640,1747765839797,-259.33,0.00016986,2]
[361759641,1747765839807,-363.52,0.00016986,2]
[361759643,1747765839817,-204.76,0.00016986,2]
[361759644,1747765839826,-430.0,0.00016986,2]
[361759645,1747765839836,-430.0,0.00016986,2]
[361759646,1747765839846,-431.13,0.00016986,2]
[361759647,1747765839855,-840.83,0.00016986,2]
[361759648,1747765839865,-430.0,0.00016986,2]
[361759650,1747765839875,-207.32,0.00016986,2]
[361759651,1747765839885,-430.0,0.00016986,2]
[361759652,1747765839895,-235.34,0.00016986,2]
[361759653,1747765839904,-430.0,0.00016986,2]
[361759654,1747765839914,-430.0,0.00016986,2]
[361759655,1747765839923,-540.2,0.00016986,2]
[361759656,1747765839934,-430.0,0.00016986,2]
[361759657,1747765839944,-454.62,0.00016986,2]
[361759658,1747765839953,-430.0,0.00016986,2]
[361759659,1747765839964,-430.0,0.00016986,2]
[361759660,1747765839977,-430.0,0.00016986,2]
[361759662,1747765839986,-430.0,0.00016986,2]
[361759664,1747765839995,-430.0,0.00016986,2]
[361759665,1747765840005,-530.5,0.00016986,2]
[361759666,1747765840015,-430.0,0.00016986,2]
[361759667,1747765840024,-430.0,0.00016986,2]
[361759668,1747765840035,-430.0,0.00016986,2]
[361759669,1747765840044,-549.57,0.00016986,2]
[361759670,1747765840055,-272.94742354,0.00016994,2]
[361759671,1747765840066,-151.0,0.000172,2]
[361759672,1747765840075,-324.09,0.0001726,2]
[361759673,1747765840084,-430.0,0.0001726,2]
[361759674,1747765840094,-239.7,0.0001726,2]
[361759675,1747765840103,-487.46,0.0001726,2]
[361759676,1747765840113,-430.0,0.0001726,2]
[361759677,1747765840123,-858.02,0.0001726,2]
[361759678,1747765840134,-430.0,0.0001726,2]
[361759679,1747765840143,-430.0,0.0001726,2]
[361759680,1747765840153,-840.83,0.0001726,2]
[361759681,1747765840162,-212.15,0.0001726,2]
[361759682,1747765840171,-430.0,0.0001726,2]
[361759683,1747765840180,-430.0,0.0001726,2]
[361759684,1747765840191,-430.0,0.0001726,2]
[361759685,1747765840200,-348.88,0.0001726,2]
[361759686,1747765840209,-430.0,0.0001726,2]
[361759687,1747765840219,-430.0,0.0001726,2]
[361759688,1747765840228,-430.0,0.0001726,2]
[361759689,1747765840237,-430.0,0.0001726,2]
[361759690,1747765840246,-430.0,0.0001726,2]
[361759691,1747765840255,-430.0,0.0001726,2]
[361759692,1747765840265,-430.0,0.0001726,2]
[361759693,1747765840274,-348.01,0.0001726,2]
[361759694,1747765840283,-476.71523576,0.00017329,2]
[361759695,1747765840293,-186.91212305,0.00017499,2]
[361759696,1747765840302,-2664.0,0.00017521,2]
[361759697,1747765840311,-151.71,0.00017534,2]
[361759698,1747765840321,-345.45,0.00017534,2]
[361759699,1747765840330,-858.02,0.00017534,2]
[361759700,1747765840339,-430.0,0.00017534,2]
[361759701,1747765840349,-430.0,0.00017534,2]
[361759702,1747765840358,-840.83,0.00017534,2]
[361759703,1747765840368,-430.0,0.00017534,2]
[361759704,1747765840379,-430.0,0.00017534,2]
[361759705,1747765840388,-430.0,0.00017534,2]
[361759706,1747765840398,-430.0,0.00017534,2]
[361759707,1747765840407,-345.21,0.00017534,2]
[361759708,1747765840417,-430.0,0.00017534,2]
[361759709,1747765840426,-430.0,0.00017534,2]
[361759710,1747765840436,-404.49,0.00017534,2]
[361759711,1747765840445,-430.0,0.00017534,2]
[361759712,1747765840455,-430.0,0.00017534,2]
[361759713,1747765840464,-308.1848464,0.0001759,2]
[361759714,1747765840473,-160.0,0.00017717,2]
[361759715,1747765840482,-160.0,0.00017717,2]
[361759716,1747765840492,-422.65292303,0.00017717,2]
[361759717,1747765840501,-596.95308759,0.00017798,2]
[361759718,1747765840511,-858.02,0.00017808,2]
[361759719,1747765840521,-341.97,0.00017808,2]
[361759720,1747765840530,-430.0,0.00017808,2]
[361759721,1747765840539,-840.83,0.00017808,2]
[361759722,1747765840549,-430.0,0.00017808,2]
[361759723,1747765840558,-430.0,0.00017808,2]
[361759724,1747765840568,-430.0,0.00017808,2]
[361759725,1747765840577,-430.0,0.00017808,2]
[361759726,1747765840587,-372.44,0.00017808,2]
[361759727,1747765840597,-430.0,0.00017808,2]
[361759728,1747765840606,-430.0,0.00017808,2]
[361759729,1747765840616,-430.0,0.00017808,2]
[361759730,1747765840625,-151.0,0.000179,2]
[361759731,1747765840640,-3316.30409511,0.000179,2]
[361759732,1747765840650,-500.0,0.00017934,2]
[361759733,1747765840660,-500.0,0.00017934,2]
[361759734,1747765840671,-500.0,0.00017934,2]
[361759735,1747765840682,-500.0,0.00017934,2]
[361759736,1747765840691,-500.0,0.00017934,2]